fUSD/lending_fUSD_20250514
["ID","MTS","AMOUNT","RATE_DAILY","PERIOD"]
[361102530,1747258244968,-400.0,0.00011186,2]
[361102531,1747258244979,-400.0,0.00011186,2]
[361102532,1747258244988,-318.10553497,0.00011186,2]
[361102533,1747258244998,-400.0,0.00011186,2]
[361102534,1747258245008,-400.0,0.00011186,2]
[361102535,1747258245018,-150.0,0.00011186,2]
[361102536,1747258245027,-400.0,0.00011186,2]
[361102537,1747258245037,-400.0,0.00011186,2]
[361102538,1747258245046,-400.0,0.00011186,2]
[361102539,1747258245056,-150.0,0.00011186,2]
[361102540,1747258245066,-400.0,0.00011186,2]
[361102541,1747258245075,-400.0,0.00011186,2]
[361102542,1747258245085,-400.0,0.00011186,2]
[361102543,1747258245095,-400.0,0.00011186,2]
[361102544,1747258245105,-478.51,0.00011186,2]
[361102545,1747258245114,-499.84,0.00011186,2]
[361102546,1747258245125,-150.0,0.00011186,2]
[361102547,1747258245134,-400.0,0.00011186,2]
[361102548,1747258245144,-400.0,0.00011186,2]
[361102549,1747258245154,-400.0,0.00011186,2]
[361102550,1747258245164,-400.0,0.00011186,2]
[361102551,1747258245174,-400.0,0.00011186,2]
[361102552,1747258245184,-400.0,0.00011186,2]
[361102553,1747258245194,-1307.25,0.00011186,2]
[361102554,1747258245203,-400.0,0.00011186,2]
[361102555,1747258245213,-400.0,0.00011186,2]
[361102556,1747258245223,-400.0,0.00011186,2]
[361102557,1747258245232,-400.0,0.00011186,2]
[361102558,1747258245241,-400.0,0.00011186,2]
[361102559,1747258245256,-400.0,0.00011186,2]
[361102560,1747258245266,-1839.57,0.00011186,2]
[361102561,1747258245276,-400.0,0.00011186,2]
[361102562,1747258245286,-400.0,0.00011186,2]
[361102563,1747258245296,-400.0,0.00011186,2]
[361102564,1747258245306,-540.33740106,0.00011186,2]
[361102565,1747258245315,-206.70884057,0.00011186,2]
[361102566,1747258245334,-295.02115943,0.00011186,2]
[361102568,1747258245345,-400.0,0.00011186,2]
[361102570,1747258245355,-8.25302279,0.00011186,2]
[361102577,1747258245985,-391.74697721,0.00011186,2]
[361102578,1747258245995,-470.1,0.00011186,2]
[361102579,1747258246005,-400.0,0.00011186,2]
[361102580,1747258246014,-400.0,0.00011186,2]
[361102581,1747258246023,-82.93056939,0.00011186,2]
[361102582,1747258246035,-317.06943061,0.00011186,2]
[361102583,1747258246044,-369.05906939,0.00011186,2]
[361102584,1747258246056,-30.94093061,0.00011186,2]
[361102585,1747258246065,-689.05906939,0.00011186,2]
[361102586,1747258246092,-16.95093061,0.00011186,2]
[361102587,1747258246102,-317.43869889,0.00011186,2]
[361102588,1747258246113,-82.56130111,0.00011186,2]
[361102589,1747258246123,-346.18371743,0.00011186,2]
[361102590,1747258246139,-340.59628257,0.00011186,2]
[361102591,1747258246149,-177.62371742,0.00011186,2]
[361102592,1747258246160,-222.37628258,0.00011186,2]
[361102593,1747258246171,-400.0,0.00011186,2]
[361102594,1747258246180,-383.82131722,0.00011186,2]
[361102598,1747258355347,246.97265385,8.582e-05,2]
[361102599,1747258355377,285.23734615,8.582e-05,2]
[361102600,1747258401286,450.0,0.0001,2]
[361102602,1747258541570,150.0,0.00010391,7]
[361102603,1747258584957,150.74482153,9.914e-05,2]
[361102608,1747259078251,150.0,0.000135,5]
[361102609,1747259273743,-282.68769248,0.00010156,2]
[361102623,1747259431792,-249.72,0.00010118,2]
[361102625,1747259431803,-200.0,0.00010137,2]
[361102627,1747259431813,-717.31230752,0.00010156,2]
[361102629,1747259431822,-200.0,0.00010198,2]
[361102631,1747259431832,-151.0773904,0.00010259,2]
[361102633,1747259431844,-25.70667825,0.000103,2]
[361102647,1747259432041,-549.90907435,0.000103,2]
[361102648,1747259432052,-465.0,0.00010405,2]
[361102649,1747259432061,-964.90252191,0.00010423,2]
[361102650,1747259432073,-417.49656767,0.00010423,2]
[361102661,1747259437916,-476.16248877,0.00010423,2]
[361102662,1747259438106,-4500.019006,0.00010423,2]
[361102663,1747259438118,-1414.48647876,0.00010423,2]
[361102664,1747259438129,-2747.93293689,0.00010423,2]
[361102665,1747259438139,-165.33,0.00010456,2]
[361102666,1747259438148,-300.0,0.00010735,2]
[361102667,1747259438157,-1200.0,0.00010735,2]
[361102668,1747259438167,-804.13,0.000108,2]
[361102669,1747259438176,-457.51,0.000108,2]
[361102670,1747259438185,-804.13,0.000108,2]
[361102671,1747259438194,-312.5,0.000108,2]
[361102672,1747259438204,-532.21,0.00010846,2]
[361102673,1747259438213,-400.0,0.000109,3]
[361102674,1747259438222,-10722.73416405,0.000109,2]
[361102675,1747259438234,-1554.35666897,0.000109,2]
[361102676,1747259438243,-162.63,0.000109,2]
[361102677,1747259438252,-312.86,0.000109,2]
[361102679,1747259438262,-801.89,0.000109,2]
[361102681,1747259438271,-804.13,0.000109,2]
[361102683,1747259438281,-500.0,0.00011041,2]
[361102685,1747259438289,-151.0773904,0.00011084,2]
[361102686,1747259438298,-420.95850727,0.00011084,2]
[361102688,1747259438307,-196.67099143,0.00011084,2]
[361102690,1747259438316,-2709.28,0.00011085,2]
[361102692,1747259438325,-25971.71313701,0.00011086,2]
[361102694,1747259438337,-1043.30116299,0.00011086,2]
[361102696,1747259438346,-3806.46995448,0.00011099,2]
[361102699,1747259438356,-1635.23682252,0.00011099,2]
[361102701,1747259438368,-1679.90689994,0.00011099,2]
[361102703,1747259438377,-207.4,0.00011101,2]
[361102705,1747259438387,-200.0,0.0001113,2]
[361102707,1747259438396,-200.0,0.00011172,2]
[361102709,1747259438406,-156.79340272,0.00011173,2]
[361102711,1747259438415,-500.0,0.00011173,2]
[361102713,1747259438424,-500.0,0.00011173,2]
[361102715,1747259438433,-167.56714199,0.00011173,2]
[361102717,1747259438442,-504.83383511,0.00011173,2]
[361102719,1747259438452,-500.0,0.00011173,2]
[361102721,1747259438461,-151.0,0.00011178,2]
[361102723,1747259438471,-151.0,0.00011178,2]
[361102725,1747259438480,-151.0,0.00011178,2]
[361102727,1747259438490,-394.78851718,0.00011178,2]
[361102766,1747259439951,-273.86334039,0.00011178,2]
[361102767,1747259439962,-151.0,0.00011178,2]
[361102768,1747259439971,-224.26013462,0.00011183,2]
[361102769,1747259440007,-175.73986538,0.00011183,2]
[361102770,1747259440016,-469.32910467,0.00011183,2]
[361102771,1747259440028,-34.52089533,0.00011183,2]
[361102772,1747259440037,-251.77242795,0.00011183,2]
[361102773,1747259440049,-259.22757205,0.00011183,2]
[361102774,1747259440057,-89.12742795,0.00011183,2]
[361102775,1747259440069,-310.87257205,0.00011183,2]
[361102776,1747259440078,-488.77742795,0.00011183,2]
[361102777,1747259440090,-1862.02257205,0.00011183,2]
[361102778,1747259440099,-365.96461798,0.00011183,2]
[361102779,1747259440108,-4901.04,0.00011183,2]
[361102780,1747259440118,-500.44,0.00011183,2]
[361102781,1747259440128,-445.74,0.00011183,2]
[361102782,1747259440137,-400.0,0.00011183,2]
[361102783,1747259440147,-400.0,0.00011183,2]
[361102784,1747259440157,-976.5,0.00011183,2]
[361102785,1747259440166,-666.34,0.00011183,2]
[361102786,1747259440176,-511.43,0.00011183,2]
[361102787,1747259440185,-400.0,0.00011183,2]
[361102788,1747259440195,-331.37295874,0.00011184,2]
[361102789,1747259440204,-758.64985123,0.00011184,2]
[361102790,1747259440280,-1803.66357558,0.00011184,2]
[361102791,1747259440292,-1401.6,0.00011184,2]
[361102792,1747259440319,-5715.12740809,0.00011184,2]
[361102793,1747259440366,-264.03639913,0.00011184,2]
[361102805,1747259445785,-299.4629,0.00011183,2]
[361102806,1747259445949,-100.5371,0.00011183,2]
[361102807,1747259445960,-8933.4781729,0.00011184,2]
[361102808,1747259445971,-16301.7033767,0.00011184,2]
[361102809,1747259445983,-12795.46002071,0.00011184,2]
[361102810,1747259445994,-4803.94624046,0.00011184,2]
[361102811,1747259446012,-20467.3807879,0.00011184,2]
[361102812,1747259446023,-51905.20079498,0.00011184,2]
[361102813,1747259446347,-433.89519052,0.00011184,2]
[361102814,1747259446358,-340.85218645,0.00011184,2]
[361102815,1747259446375,-5848.1442474,0.00011184,2]
[361102817,1747259510105,501.18,8.726e-05,2]
[361102821,1747259646835,1000.0,9.824e-05,2]
[361102822,1747259647008,1000.0,9.89e-05,2]
[361102823,1747259663997,150.0,0.00010132,7]
[361102824,1747259704723,-299.70503863,0.00010123,2]
[361102825,1747259757303,-282.68769248,0.00010077,2]
[361102826,1747259759819,-203.56591528,0.00010077,2]
[361102827,1747259763422,-273.58415219,0.00010077,2]
[361102828,1747259765327,-235.63743195,0.00010077,2]
[361102829,1747260235351,450.0,0.0001,2]
[361102830,1747260274362,170.44,9.941e-05,2]
[361102831,1747260529883,333.14,0.0001,2]
[361102838,1747260632154,-4.5248081,0.00010077,2]
[361102839,1747260632164,-200.0,0.00010078,2]
[361102840,1747260632175,-200.0,0.0001008,2]
[361102841,1747260632184,-200.0,0.000101,2]
[361102842,1747260632194,-700.29496137,0.00010123,2]
[361102843,1747260632203,-1200.0,0.00010387,2]
[361102844,1747260632212,-300.0,0.00010387,2]
[361102845,1747260632221,-300.0,0.00010387,2]
[361102846,1747260632231,-5306.64,0.00010388,2]
[361102847,1747260632239,-395.87,0.00010388,2]
[361102848,1747260632249,-946.42,0.00010388,2]
[361102849,1747260632258,-112.66345973,0.00010396,2]
[361102874,1747260632603,-37.33654027,0.00010396,2]
[361102876,1747260632612,-42638.91475887,0.00010397,2]
[361102878,1747260632621,-153.56,0.00010644,2]
[361102880,1747260632631,-1000.0,0.00010644,2]
[361102882,1747260632641,-1065.12052164,0.00010652,2]
[361102884,1747260632650,-1157.11,0.000107,2]
[361102886,1747260632660,-1157.11,0.000107,2]
[361102888,1747260632669,-1157.11,0.000107,2]
[361102890,1747260632679,-344.84,0.000107,2]
[361102892,1747260632688,-150.18,0.000107,2]
[361102894,1747260632697,-2314.22,0.000107,2]
[361102896,1747260632708,-1155.89,0.000107,2]
[361102898,1747260632717,-2314.97,0.000107,2]
[361102900,1747260632726,-150.18,0.000107,2]
[361102901,1747260632736,-207.4,0.00010712,2]
[361102903,1747260632746,-668.65185757,0.00010712,2]
[361102905,1747260632755,-151.0,0.00010712,2]
[361102907,1747260632764,-151.0,0.00010712,2]
[361102909,1747260632773,-8699.29858743,0.00010785,2]
[361102911,1747260632783,-150.18,0.000108,2]
[361102913,1747260632792,-400.0,0.000108,3]
[361102915,1747260632801,-457.51,0.000108,2]
[361102917,1747260632811,-1157.11,0.000108,2]
[361102919,1747260632820,-2312.97,0.000108,2]
[361102921,1747260632831,-1157.11,0.000108,2]
[361102923,1747260632840,-1157.11,0.000108,2]
[361102925,1747260632849,-1157.11,0.000108,2]
[361102927,1747260632857,-1136.0,0.00010846,2]
[361102929,1747260632867,-1607.86,0.00010849,2]
[361102931,1747260632876,-804.13,0.00010849,2]
[361102933,1747260632886,-455.82,0.00010849,2]
[361102935,1747260632896,-804.13,0.00010849,2]
[361102937,1747260632905,-3999.44126307,0.00010899,2]
[361102939,1747260632915,-300.0,0.000109,2]
[361102941,1747260632926,-150.57,0.000109,2]
[361102943,1747260632935,-150.78,0.000109,2]
[361102945,1747260632944,-800.0,0.000109,3]
[361102947,1747260632953,-11867.8544719,0.000109,2]
[361102949,1747260632963,-1172.0,0.000109,2]
[361102951,1747260632971,-150.0,0.00010959,2]
[361102953,1747260632981,-500.0,0.00010959,2]
[361102955,1747260632991,-500.0,0.00010959,2]
[361102957,1747260633000,-500.0,0.00010959,2]
[361102959,1747260633010,-595.69819196,0.00010959,2]
[361102961,1747260633019,-500.0,0.00010959,2]
[361102963,1747260633029,-500.0,0.00010959,2]
[361102965,1747260633039,-500.0,0.00010959,2]
[361102967,1747260633049,-500.0,0.00010959,2]
[361102969,1747260633058,-14641.34056438,0.00010972,2]
[361102971,1747260633067,-501.18,0.0001099,2]
[361102973,1747260633077,-422.37,0.00011,2]
[361102975,1747260633086,-422.37,0.00011,2]
[361102977,1747260633096,-422.37,0.00011,2]
[361102979,1747260633105,-3935.3145,0.00011068,2]
[361102981,1747260633115,-395.25275056,0.00011082,2]
[361102983,1747260633124,-195.13576312,0.00011082,2]
[361102985,1747260633134,-1054.4445,0.00011084,2]
[361102987,1747260633143,-2614.5708,0.00011084,2]
[361102989,1747260633154,-22698.4684,0.00011084,2]
[361102991,1747260633163,-580.6957,0.00011084,2]
[361102993,1747260633174,-621.9567,0.00011084,2]
[361102995,1747260633183,-5179.914,0.00011084,2]
[361102997,1747260633194,-200.0,0.00011085,2]
[361102999,1747260633203,-200.0,0.00011085,2]
[361103001,1747260633212,-4899.75048278,0.00011099,2]
[361103002,1747260633221,-422.37,0.000111,2]
[361103004,1747260633231,-422.37,0.000111,2]
[361103007,1747260633241,-250.0,0.00011135,2]
[361103008,1747260633250,-500.0,0.00011173,2]
[361103011,1747260633260,-500.0,0.00011173,2]
[361103013,1747260633269,-500.0,0.00011173,2]
[361103014,1747260633279,-500.0,0.00011173,2]
[361103016,1747260633288,-500.0,0.00011173,2]
[361103018,1747260633297,-500.0,0.00011173,2]
[361103020,1747260633307,-500.0,0.00011173,2]
[361103022,1747260633317,-6928.8491125,0.00011174,2]
[361103024,1747260633327,-490.12,0.0001118,2]
[361103026,1747260633336,-66770.15966278,0.00011181,2]
[361103059,1747260638063,-1476.61709751,0.00011181,2]
[361103060,1747260638075,-82132.48631795,0.00011181,2]
[361103061,1747260638086,-54903.82495317,0.00011181,2]
[361103251,1747260640327,-806.4529027,0.00011181,2]
[361103253,1747260640338,-517.75,0.00011181,2]
[361103487,1747260643380,-16115.48104364,0.00011181,2]
[361103488,1747260643390,-400.0,0.00011181,2]
[361103489,1747260643401,-400.0,0.00011181,2]
[361103490,1747260643412,-937.65,0.00011181,2]
[361103491,1747260643422,-751.98,0.00011181,2]
[361103492,1747260643432,-1498.86,0.00011181,2]
[361103493,1747260643443,-400.0,0.00011181,2]
[361103494,1747260643452,-400.0,0.00011181,2]
[361103495,1747260643461,-520.79,0.00011181,2]
[361103496,1747260643471,-836.02,0.00011181,2]
[361103497,1747260643482,-400.0,0.00011181,2]
[361103498,1747260643491,-856.55,0.00011181,2]
[361103499,1747260643501,-700.77,0.00011181,2]
[361103500,1747260643510,-400.0,0.00011181,2]
[361103501,1747260643519,-482.86,0.00011181,2]
[361103502,1747260643529,-400.0,0.00011181,2]
[361103503,1747260643538,-400.0,0.00011181,2]
[361103504,1747260643547,-400.0,0.00011181,2]
[361103505,1747260643556,-598.69,0.00011181,2]
[361103506,1747260643566,-489.7,0.00011181,2]
[361103507,1747260643575,-521.04,0.00011181,2]
[361103508,1747260643584,-400.0,0.00011181,2]
[361103509,1747260643594,-400.0,0.00011181,2]
[361103510,1747260643603,-1223.53,0.00011181,2]
[361103511,1747260643612,-400.0,0.00011181,2]
[361103512,1747260643622,-400.0,0.00011181,2]
[361103513,1747260643631,-4696.83,0.00011181,2]
[361103514,1747260643641,-63162.75,0.00011181,2]
[361103515,1747260643652,-651.13,0.00011181,2]
[361103516,1747260643661,-897.26,0.00011181,2]
[361103517,1747260643671,-400.0,0.00011181,2]
[361103518,1747260643680,-157.79637,0.00011181,2]
[361103519,1747260643690,-427.16,0.00011181,2]
[361103520,1747260643699,-168.492818,0.00011181,2]
[361103521,1747260643708,-473.08,0.00011181,2]
[361103522,1747260643717,-2203.74,0.00011181,2]
[361103523,1747260643727,-400.0,0.00011181,2]
[361103524,1747260643736,-400.0,0.00011181,2]
[361103525,1747260643745,-3158.5,0.00011181,2]
[361103526,1747260643755,-400.0,0.00011181,2]
[361103527,1747260643764,-400.0,0.00011181,2]
[361103528,1747260643774,-172.455878,0.00011181,2]
[361103529,1747260643783,-1859.7,0.00011181,2]
[361103530,1747260643792,-400.0,0.00011181,2]
[361103531,1747260643801,-400.0,0.00011181,2]
[361103532,1747260643811,-400.0,0.00011181,2]
[361103533,1747260643820,-400.0,0.00011181,2]
[361103534,1747260643829,-434.59,0.00011181,2]
[361103535,1747260643839,-400.0,0.00011181,2]
[361103536,1747260643849,-165.68647937,0.00011181,2]
[361103537,1747260643858,-400.0,0.00011182,2]
[361103538,1747260643868,-614.54,0.00011182,2]
[361103539,1747260643877,-400.0,0.00011182,2]
[361103540,1747260643887,-400.0,0.00011182,2]
[361103541,1747260643896,-400.0,0.00011182,2]
[361103542,1747260643905,-400.0,0.00011182,2]
[361103543,1747260643915,-400.0,0.00011182,2]
[361103544,1747260643924,-400.0,0.00011182,2]
[361103545,1747260644180,-400.0,0.00011182,2]
[361103546,1747260644190,-400.0,0.00011182,2]
[361103547,1747260644200,-400.0,0.00011182,2]
[361103548,1747260644209,-400.0,0.00011182,2]
[361103549,1747260644219,-538.6,0.00011182,2]
[361103550,1747260644229,-400.0,0.00011182,2]
[361103551,1747260644240,-400.0,0.00011182,2]
[361103552,1747260644250,-400.0,0.00011182,2]
[361103553,1747260644259,-400.0,0.00011182,2]
[361103554,1747260644269,-516.99230662,0.00011182,2]
[361103555,1747260644279,-400.0,0.00011182,2]
[361103556,1747260644289,-400.0,0.00011182,2]
[361103557,1747260644298,-400.0,0.00011182,2]
[361103558,1747260644308,-400.0,0.00011182,2]
[361103559,1747260644317,-400.0,0.00011182,2]
[361103560,1747260644327,-400.0,0.00011182,2]
[361103561,1747260644337,-400.0,0.00011182,2]
[361103562,1747260644346,-400.0,0.00011182,2]
[361103563,1747260644356,-468.69185577,0.00011182,2]
[361103564,1747260644366,-400.0,0.00011182,2]
[361103565,1747260644376,-400.0,0.00011182,2]
[361103566,1747260644385,-400.0,0.00011182,2]
[361103567,1747260644395,-400.0,0.00011182,2]
[361103568,1747260644407,-400.0,0.00011182,2]
[361103569,1747260644416,-400.0,0.00011182,2]
[361103570,1747260644426,-400.0,0.00011182,2]
[361103571,1747260644437,-400.0,0.00011182,2]
[361103572,1747260644447,-400.0,0.00011182,2]
[361103573,1747260644457,-400.0,0.00011182,2]
[361103574,1747260644467,-400.0,0.00011182,2]
[361103575,1747260644476,-400.0,0.00011182,2]
[361103576,1747260644487,-400.0,0.00011182,2]
[361103577,1747260644497,-400.0,0.00011182,2]
[361103578,1747260644507,-483.85,0.00011182,2]
[361103579,1747260644516,-544.52,0.00011182,2]
[361103580,1747260644526,-400.0,0.00011182,2]
[361103581,1747260644535,-400.6,0.00011182,2]
[361103582,1747260644545,-400.0,0.00011182,2]
[361103583,1747260644555,-400.0,0.00011182,2]
[361103584,1747260644564,-400.0,0.00011182,2]
[361103585,1747260644574,-479.58,0.00011182,2]
[361103586,1747260644584,-400.0,0.00011182,2]
[361103587,1747260644594,-491.97,0.00011182,2]
[361103588,1747260644604,-400.0,0.00011182,2]
[361103589,1747260644613,-493.41469418,0.00011182,2]
[361103590,1747260644623,-400.0,0.00011182,2]
[361103591,1747260644632,-400.0,0.00011182,2]
[361103592,1747260644642,-400.0,0.00011182,2]
[361103593,1747260644651,-400.0,0.00011182,2]
[361103594,1747260644660,-638.58,0.00011182,2]
[361103595,1747260644670,-400.0,0.00011182,2]
[361103596,1747260644680,-400.0,0.00011182,2]
[361103597,1747260644691,-400.0,0.00011182,2]
[361103598,1747260644701,-401.91623227,0.00011182,2]
[361103599,1747260644711,-472.15,0.00011182,2]
[361103600,1747260644720,-400.0,0.00011182,2]
[361103601,1747260644730,-400.0,0.00011182,2]
[361103602,1747260644739,-338.33,0.00011182,2]
[361103603,1747260644748,-1400.3,0.00011182,2]
[361103604,1747260644758,-400.0,0.00011182,2]
[361103605,1747260644767,-322.26,0.00011182,2]
[361103606,1747260644776,-400.0,0.00011182,2]
[361103607,1747260644786,-400.0,0.00011182,2]
[361103608,1747260644796,-400.0,0.00011182,2]
[361103609,1747260644805,-400.0,0.00011182,2]
[361103610,1747260644814,-400.0,0.00011182,2]
[361103611,1747260644824,-400.0,0.00011182,2]
[361103612,1747260644833,-400.0,0.00011182,2]
[361103613,1747260644843,-151.0,0.00011182,2]
[361103614,1747260644852,-400.0,0.00011182,2]
[361103615,1747260644861,-400.0,0.00011182,2]
[361103616,1747260644871,-404.23,0.00011182,2]
[361103617,1747260644880,-400.0,0.00011182,2]
[361103618,1747260644890,-400.0,0.00011182,2]
[361103619,1747260644899,-400.0,0.00011182,2]
[361103620,1747260644909,-400.0,0.00011182,2]
[361103621,1747260644918,-400.0,0.00011182,2]
[361103622,1747260644928,-400.0,0.00011182,2]
[361103623,1747260644938,-400.0,0.00011182,2]
[361103624,1747260644948,-400.0,0.00011182,2]
[361103625,1747260644956,-400.0,0.00011182,2]
[361103626,1747260644965,-400.0,0.00011182,2]
[361103627,1747260644975,-400.0,0.00011182,2]
[361103628,1747260644984,-151.63601563,0.00011182,2]
[361103629,1747260644994,-400.0,0.00011182,2]
[361103630,1747260645003,-450.51,0.00011182,2]
[361103631,1747260645013,-400.0,0.00011182,2]
[361103632,1747260645022,-400.0,0.00011182,2]
[361103633,1747260645031,-441.98,0.00011182,2]
[361103634,1747260645040,-400.0,0.00011182,2]
[361103635,1747260645049,-400.0,0.00011182,2]
[361103636,1747260645059,-400.0,0.00011182,2]
[361103637,1747260645068,-527.81,0.00011182,2]
[361103638,1747260645077,-400.0,0.00011182,2]
[361103639,1747260645087,-400.0,0.00011182,2]
[361103640,1747260645095,-400.0,0.00011182,2]
[361103641,1747260645105,-400.0,0.00011182,2]
[361103642,1747260645117,-400.0,0.00011182,2]
[361103643,1747260645126,-153.385844,0.00011182,2]
[361103644,1747260645136,-400.0,0.00011182,2]
[361103645,1747260645145,-400.0,0.00011182,2]
[361103646,1747260645155,-400.0,0.00011182,2]
[361103647,1747260645163,-214.1711677,0.00011182,2]
[361103648,1747260645173,-400.0,0.00011182,2]
[361103649,1747260645182,-400.0,0.00011182,2]
[361103650,1747260645191,-151.0,0.00011182,2]
[361103651,1747260645200,-400.0,0.00011182,2]
[361103652,1747260645209,-151.0,0.00011182,2]
[361103653,1747260645218,-400.0,0.00011182,2]
[361103654,1747260645227,-151.0,0.00011182,2]
[361103655,1747260645238,-1234.27,0.00011182,2]
[361103656,1747260645248,-151.0,0.00011182,2]
[361103657,1747260645258,-400.0,0.00011182,2]
[361103658,1747260645267,-400.0,0.00011182,2]
[361103659,1747260645274,-400.0,0.00011182,2]
[361103660,1747260645283,-400.0,0.00011182,2]
[361103661,1747260645293,-565.28,0.00011182,2]
[361103662,1747260645303,-400.0,0.00011182,2]
[361103663,1747260645312,-400.0,0.00011182,2]
[361103664,1747260645321,-400.0,0.00011182,2]
[361103665,1747260645330,-400.0,0.00011182,2]
[361103666,1747260645340,-1054.08,0.00011182,2]
[361103667,1747260645349,-400.0,0.00011182,2]
[361103668,1747260645359,-762.21,0.00011182,2]
[361103669,1747260645368,-400.0,0.00011182,2]
[361103670,1747260645377,-2131.25,0.00011182,2]
[361103671,1747260645388,-400.0,0.00011182,2]
[361103672,1747260645397,-997.38,0.00011182,2]
[361103673,1747260645410,-400.0,0.00011182,2]
[361103674,1747260645420,-151.0,0.00011182,2]
[361103675,1747260645432,-989.84,0.00011182,2]
[361103676,1747260645443,-150.0,0.00011182,2]
[361103677,1747260645452,-153.840519,0.00011182,2]
[361103678,1747260645462,-1200.43,0.00011182,2]
[361103679,1747260645471,-514.53,0.00011182,2]
[361103680,1747260645482,-400.0,0.00011182,2]
[361103681,1747260645491,-400.0,0.00011182,2]
[361103682,1747260645500,-150.0,0.00011182,2]
[361103683,1747260645510,-1238.77,0.00011182,2]
[361103684,1747260645519,-400.0,0.00011182,2]
[361103685,1747260645529,-1061.4,0.00011182,2]
[361103686,1747260645538,-400.0,0.00011182,2]
[361103687,1747260645547,-975.89,0.00011182,2]
[361103688,1747260645556,-4127.431326,0.00011182,2]
[361103689,1747260645566,-1132.17,0.00011182,2]
[361103690,1747260645575,-492.167679,0.00011182,2]
[361103691,1747260645584,-400.0,0.00011182,2]
[361103692,1747260645594,-400.0,0.00011182,2]
[361103693,1747260645603,-4127.431326,0.00011182,2]
[361103694,1747260645612,-400.0,0.00011182,2]
[361103695,1747260645621,-5859.05,0.00011182,2]
[361103696,1747260645631,-492.167679,0.00011182,2]
[361103697,1747260645640,-400.0,0.00011182,2]
[361103698,1747260645650,-400.0,0.00011182,2]
[361103699,1747260645659,-477.68,0.00011182,2]
[361103700,1747260645669,-400.0,0.00011182,2]
[361103701,1747260645678,-597.6,0.00011182,2]
[361103702,1747260645689,-400.0,0.00011182,2]
[361103703,1747260645699,-151.0,0.00011182,2]
[361103704,1747260645709,-400.0,0.00011182,2]
[361103705,1747260645718,-1208.59,0.00011182,2]
[361103706,1747260645727,-151.0,0.00011182,2]
[361103707,1747260645736,-400.0,0.00011182,2]
[361103708,1747260645746,-400.0,0.00011182,2]
[361103709,1747260645756,-400.0,0.00011182,2]
[361103710,1747260645765,-400.0,0.00011182,2]
[361103711,1747260645775,-1674.1,0.00011182,2]
[361103712,1747260645784,-400.0,0.00011182,2]
[361103713,1747260645794,-400.0,0.00011182,2]
[361103714,1747260645803,-3829.96,0.00011182,2]
[361103715,1747260645813,-400.0,0.00011182,2]
[361103716,1747260645822,-151.0,0.00011182,2]
[361103717,1747260645832,-705.57,0.00011182,2]
[361103718,1747260645842,-400.0,0.00011182,2]
[361103719,1747260645852,-451.88,0.00011182,2]
[361103720,1747260645862,-400.0,0.00011182,2]
[361103721,1747260645871,-578.39,0.00011182,2]
[361103722,1747260645881,-1392.45,0.00011182,2]
[361103723,1747260645891,-150.0,0.00011182,2]
[361103724,1747260645900,-534.73,0.00011182,2]